bitfinex-derivatives/quotes_BTCF0:USTF0_20250822
["timestamp","ask_amount","ask_price","bid_price","bid_amount"]
[1755821826511,0.59425,112730.0,112720.0,0.91469]
[1755821827009,0.59425,112730.0,112720.0,1.19515513]
[1755821827612,0.23345,112730.0,112720.0,1.19515513]
[1755821827815,0.19912,112730.0,112720.0,1.19515513]
[1755821828611,0.23345,112730.0,112720.0,1.19515513]
[1755821828909,0.21911,112730.0,112720.0,1.19515513]
[1755821829307,0.18478,112730.0,112720.0,1.55595513]
[1755821829509,0.18378,112730.0,112720.0,1.61944304]
[1755821830601,0.18278,112730.0,112720.0,1.61944304]
[1755821831310,0.18178,112730.0,112720.0,1.61944304]
[1755821831512,0.18278,112730.0,112720.0,1.61944304]
[1755821832314,0.11382,112730.0,112720.0,1.62024304]
[1755821832815,0.11382,112730.0,112720.0,1.55675513]
[1755821833704,0.11382,112730.0,112720.0,1.82235513]
[1755821834103,0.11182,112730.0,112720.0,1.82235513]
[1755821834415,0.11182,112730.0,112720.0,1.99041373]
[1755821834716,0.11082,112730.0,112720.0,1.99041373]
[1755821836420,0.11082,112730.0,112720.0,2.01029051]
[1755821837720,0.11082,112730.0,112720.0,2.01329051]
[1755821838521,0.11082,112730.0,112720.0,2.01229051]
[1755821838721,0.11082,112730.0,112720.0,2.01129051]
[1755821839820,0.11082,112730.0,112720.0,2.01049051]
[1755821840218,0.06082,112730.0,112720.0,2.01049051]
[1755821840422,0.05982,112730.0,112720.0,2.01049051]
[1755821840621,0.33942,112730.0,112720.0,2.01049051]
[1755821840919,0.28472971,112730.0,112720.0,1.93016651]
[1755821841419,0.28472971,112730.0,112720.0,2.01137116]
[1755821841920,0.28472971,112730.0,112720.0,2.01337116]
[1755821842109,0.28472971,112730.0,112720.0,1.93416651]
[1755821843522,0.24963971,112730.0,112720.0,2.21463164]
[1755821843721,0.05004971,112730.0,112720.0,2.21463164]
[1755821849427,0.05004971,112730.0,112720.0,1.13852651]
[1755821849627,0.07395971,112730.0,112720.0,1.95884651]
[1755821850326,0.07395971,112730.0,112720.0,2.03797881]
[1755821851026,0.05004971,112730.0,112720.0,2.31844394]
[1755821852525,0.05004971,112730.0,112720.0,2.23931164]
[1755821852723,0.05004971,112730.0,112720.0,2.38671164]
[1755821853221,0.05004971,112730.0,112720.0,2.46585225]
[1755821853423,0.05004971,112730.0,112720.0,2.38671164]
[1755821854730,0.2432,112780.0,112740.0,0.3843252]
[1755821854922,0.29116,112780.0,112770.0,0.30179513]
[1755821855229,0.29196,112780.0,112770.0,1.12195513]
[1755821855429,0.29196,112780.0,112770.0,1.15448513]
[1755821855625,0.29196,112780.0,112770.0,1.16316403]
[1755821855823,0.29196,112780.0,112770.0,1.52396403]
[1755821856533,0.29116,112780.0,112770.0,1.50579403]
[1755821856727,0.29116,112780.0,112770.0,1.53832403]
[1755821856929,0.11896,112780.0,112770.0,1.53832403]
[1755821857128,0.11896,112780.0,112770.0,1.56223403]
[1755821857328,0.12296,112780.0,112770.0,1.56223403]
[1755821857527,0.12496,112780.0,112770.0,1.56223403]
[1755821857929,0.12496,112780.0,112770.0,1.63470025]
[1755821860124,0.12496,112780.0,112770.0,1.69802577]
[1755821860329,0.12396,112780.0,112770.0,1.69802577]
[1755821860930,0.12296,112780.0,112770.0,1.69802577]
[1755821861131,0.12196,112780.0,112770.0,1.69802577]
[1755821867532,0.12196,112780.0,112770.0,1.41756064]
[1755821867737,0.12196,112780.0,112770.0,1.72375577]
[1755821874641,0.12196,112780.0,112770.0,1.44329064]
[1755821874845,0.12196,112780.0,112770.0,1.72375577]
[1755821876244,0.07487,112780.0,112770.0,1.81245137]
[1755821876445,0.05849,112780.0,112770.0,1.83251012]
[1755821876940,0.05849,112780.0,112770.0,1.74381452]
[1755821879145,0.05849,112780.0,112770.0,1.83251012]
[1755821880347,0.05849,112780.0,112770.0,1.74381452]
[1755821880545,0.02691,112780.0,112770.0,1.83251012]
[1755821880747,0.003,112780.0,112770.0,2.11297525]
[1755821881242,0.003,112780.0,112770.0,2.04964973]
[1755821882949,0.003,112780.0,112770.0,2.12880952]
[1755821883349,0.003,112780.0,112770.0,3.62880952]
[1755821883650,0.002,112780.0,112770.0,3.62880952]
[1755821884049,0.002,112780.0,112770.0,3.54011392]
[1755821884251,0.07388,112790.0,112770.0,3.46931392]
[1755821884550,0.12085,112790.0,112780.0,0.82120274]
[1755821886450,0.12185,112790.0,112780.0,1.00009761]
[1755821886844,0.12185,112790.0,112780.0,1.28056274]
[1755821887044,0.12385,112790.0,112780.0,1.28056274]
[1755821887246,0.12385,112790.0,112780.0,1.64136274]
[1755821887447,0.08938,112790.0,112780.0,1.64136274]
[1755821887651,0.12948,112790.0,112780.0,1.64136274]
[1755821888442,0.12948,112790.0,112780.0,1.57789513]
[1755821888652,0.16395,112790.0,112780.0,1.64137556]
[1755821888854,0.16395,112790.0,112780.0,1.36091043]
[1755821889041,0.12948,112790.0,112780.0,1.64137556]
[1755821889646,0.11493,112790.0,112780.0,1.64137556]
[1755821890352,0.0431,112790.0,112780.0,1.93218303]
[1755821891052,0.0431,112790.0,112780.0,1.66658303]
[1755821893953,0.1118,112800.0,112780.0,1.92311562]
[1755821894155,0.1118,112800.0,112790.0,0.75379851]
[1755821894454,0.13426,112800.0,112790.0,0.69035513]
[1755821894654,0.13826,112800.0,112790.0,0.69035513]
[1755821895455,0.1188,112800.0,112790.0,0.69035513]
[1755821895950,0.1178,112800.0,112790.0,0.75377003]
[1755821896157,0.1198,112800.0,112790.0,0.75377003]
[1755821898650,0.1178,112800.0,112790.0,0.75377003]
[1755821898851,0.1188,112800.0,112790.0,0.69035513]
[1755821899448,0.14319,112800.0,112790.0,0.69035513]
[1755821899952,0.16465,112800.0,112790.0,0.69035513]
[1755821900856,0.16465,112800.0,112790.0,1.03511492]
[1755821900857,0.1178,112800.0,112790.0,1.03511492]
[1755821901058,0.1178,112800.0,112790.0,1.40426025]
[1755821901254,0.1178,112800.0,112790.0,1.32510046]
[1755821902068,0.1178,112800.0,112790.0,1.40426025]
[1755821902358,0.1178,112800.0,112790.0,1.31558005]
[1755821902959,0.13933,112800.0,112790.0,0.75464979]
[1755821903258,0.17338,112800.0,112790.0,1.03511492]
[1755821903956,0.2078,112800.0,112790.0,1.85483492]
[1755821904161,0.23789,112800.0,112790.0,1.85483492]
[1755821905259,0.20347,112800.0,112790.0,1.85483492]
[1755821905559,0.18919,112800.0,112790.0,1.85483492]
[1755821905759,0.17338,112800.0,112790.0,1.85483492]
[1755821906961,0.2078,112800.0,112790.0,1.57436979]
[1755821907161,0.2078,112800.0,112790.0,1.85483492]
[1755821907361,0.22208,112800.0,112790.0,1.85483492]
[1755821907757,0.20347,112800.0,112790.0,1.85483492]
[1755821907958,0.23789,112800.0,112790.0,1.85483492]
[1755821908158,0.23789,112800.0,112790.0,1.77567513]
[1755821908360,0.23789,112800.0,112790.0,1.85483492]
[1755821911860,0.23789,112800.0,112790.0,1.03511492]
[1755821912062,0.23789,112800.0,112790.0,1.85499492]
[1755821912560,0.23789,112800.0,112790.0,1.83196492]
[1755821912765,0.59869,112800.0,112790.0,1.17487619]
[1755821912965,0.23789,112800.0,112790.0,1.17487619]
[1755821913161,0.23789,112800.0,112790.0,1.14881619]
[1755821913762,0.23789,112800.0,112790.0,1.15260619]
[1755821913964,0.23789,112800.0,112790.0,1.43307132]
[1755821914269,0.23789,112800.0,112790.0,1.17480619]
[1755821915167,0.23789,112800.0,112790.0,1.45527132]
[1755821915461,0.87915513,112800.0,112790.0,1.17101619]
[1755821915667,0.87915513,112800.0,112790.0,1.10768]
[1755821915867,0.87995513,112800.0,112790.0,1.10153]
[1755821916566,0.87995513,112800.0,112790.0,0.83593]
[1755821916867,1.08223513,112800.0,112790.0,0.8198]
[1755821917566,1.08143513,112800.0,112790.0,0.8198]
[1755821918363,0.07309,112790.0,112780.0,1.75328619]
[1755821918564,0.76135513,112790.0,112780.0,2.50672]
[1755821919072,0.12009,112780.0,112770.0,0.19053006]
[1755821919375,0.12009,112780.0,112770.0,1.01109006]
[1755821919760,0.11909,112780.0,112770.0,1.01209006]
[1755821919965,0.47989,112780.0,112770.0,1.01209006]
[1755821920167,0.49269,112780.0,112770.0,1.03600006]
[1755821920466,0.49269,112780.0,112770.0,1.255729]
[1755821920666,0.49269,112780.0,112770.0,0.97526387]
[1755821921370,0.49169,112780.0,112770.0,0.97526387]
[1755821921962,0.09847,112780.0,112770.0,1.255729]
[1755821922168,0.06838,112780.0,112770.0,1.256729]
[1755821922560,0.06838,112780.0,112770.0,1.257049]
[1755821922759,0.08266,112780.0,112770.0,0.436169]
[1755821922959,0.0128,112780.0,112770.0,1.53759413]
[1755821923165,0.0128,112780.0,112770.0,2.05122612]
[1755821923373,0.0108,112780.0,112770.0,2.05122612]
[1755821923863,0.0108,112780.0,112770.0,1.96253032]
[1755821924063,0.0108,112780.0,112770.0,1.89919413]
[1755821924459,0.05672,112780.0,112770.0,1.07743413]
[1755821924666,0.06638,112780.0,112770.0,1.618289]
[1755821925067,0.1008,112780.0,112770.0,1.618289]
[1755821925370,0.0108,112780.0,112770.0,1.89875413]
[1755821925769,0.00701,112780.0,112770.0,1.98824993]
[1755821926268,0.3325,112800.0,112790.0,0.01613]
[1755821926575,0.31822,112800.0,112790.0,1.49573513]
[1755821926969,0.56522,112800.0,112790.0,1.49573513]
[1755821927474,0.51164,112800.0,112790.0,1.49573513]
[1755821928471,0.51364,112800.0,112790.0,1.49573513]
[1755821928775,0.3628,112800.0,112790.0,1.49573513]
[1755821929574,0.38704,112800.0,112790.0,1.49573513]
[1755821930171,0.38704,112800.0,112790.0,1.21527]
[1755821930172,0.4086,112800.0,112790.0,1.21527]
[1755821930374,0.38704,112800.0,112790.0,1.49573513]
[1755821931276,0.38704,112800.0,112790.0,1.82460609]
[1755821931470,0.3628,112800.0,112790.0,2.18540609]
[1755821931668,0.3628,112800.0,112790.0,2.12213513]
[1755821931868,0.3628,112800.0,112790.0,2.18538012]
[1755821932279,0.3628,112800.0,112790.0,2.12213513]
[1755821934078,0.3628,112800.0,112790.0,2.21081523]
[1755821934272,0.3628,112800.0,112790.0,2.13700026]
[1755821934473,0.3628,112800.0,112790.0,1.94521523]
[1755821935472,0.3628,112800.0,112790.0,1.85653513]
[1755821936071,0.3598,112800.0,112790.0,1.85653513]
[1755821936277,0.3608,112800.0,112790.0,1.85653513]
[1755821937674,0.3608,112800.0,112790.0,2.00393513]
[1755821937874,0.3608,112800.0,112790.0,1.85653513]
[1755821938673,0.3608,112800.0,112790.0,1.93569492]
[1755821940180,0.38504,112800.0,112790.0,1.93569492]
[1755821941382,0.41564,112800.0,112790.0,0.83378979]
[1755821941582,0.44904,112800.0,112790.0,1.93445492]
[1755821942577,0.47854,112800.0,112790.0,1.93445492]
[1755821942784,0.47854,112800.0,112790.0,1.85529513]
[1755821943083,0.47854,112800.0,112790.0,1.93445492]
[1755821943084,0.44514,112800.0,112790.0,1.93445492]
[1755821943271,0.43091,112800.0,112790.0,1.93445492]
[1755821943878,0.41564,112800.0,112790.0,1.93445492]
[1755821945386,0.41564,112800.0,112790.0,1.85529513]
[1755821946084,0.43091,112800.0,112790.0,2.12089513]
[1755821946281,0.44514,112800.0,112790.0,2.12089513]
[1755821946585,0.47854,112800.0,112790.0,2.12089513]
[1755821947487,0.44514,112800.0,112790.0,2.12089513]
[1755821947990,0.44514,112800.0,112790.0,2.20005492]
[1755821948589,0.47854,112800.0,112790.0,2.20005492]
[1755821948886,0.44514,112800.0,112790.0,1.37985492]
[1755821949088,0.47854,112800.0,112790.0,2.12053513]
[1755821949790,0.47854,112800.0,112790.0,2.14001213]
[1755821950692,0.47854,112800.0,112790.0,2.21917192]
[1755821951386,0.47754,112800.0,112790.0,2.22017192]
[1755821951895,0.47654,112800.0,112790.0,2.22117192]
[1755821952392,0.47654,112800.0,112790.0,2.22017192]
[1755821952693,0.39208,112800.0,112790.0,2.22017192]
[1755821952893,0.38304,112800.0,112790.0,2.30885192]
[1755821953293,0.38304,112800.0,112790.0,2.22017192]
[1755821953493,0.38304,112800.0,112790.0,2.30885192]
[1755821953793,0.38304,112800.0,112790.0,2.22017192]
[1755821954192,0.41364,112800.0,112790.0,2.22017192]
[1755821954893,0.41364,112800.0,112790.0,2.30885202]
[1755821955097,0.39208,112800.0,112790.0,2.22017192]
[1755821955491,0.41364,112800.0,112790.0,2.22017192]
[1755821956393,0.44704,112800.0,112790.0,1.93970679]
[1755821956694,0.46127,112800.0,112790.0,2.22017192]
[1755821958598,0.47778,112800.0,112790.0,2.22017192]
[1755821959600,0.44438,112800.0,112790.0,2.22017192]
[1755821959799,0.41364,112800.0,112790.0,2.22017192]
[1755821959999,0.41364,112800.0,112790.0,2.30885192]
[1755821960591,0.41364,112800.0,112790.0,2.22017192]
[1755821960898,0.42777,112800.0,112790.0,2.22017192]
[1755821961399,0.42777,112800.0,112790.0,2.30885192]
[1755821962200,0.42777,112800.0,112790.0,2.02838679]
[1755821962401,0.46161,112800.0,112790.0,2.30885192]
[1755821962701,0.46161,112800.0,112790.0,2.14101213]
[1755821962999,0.46161,112800.0,112790.0,2.22025564]
[1755821963200,0.42777,112800.0,112790.0,2.22025564]
[1755821963400,0.42777,112800.0,112790.0,2.22969223]
[1755821963899,0.75858513,112800.0,112790.0,0.83577]
[1755821964099,0.75858513,112800.0,112790.0,0.89917724]
[1755821964493,0.75858513,112800.0,112790.0,0.91501767]
[1755821964692,0.47812,112800.0,112790.0,0.83577]
[1755821965096,0.47812,112800.0,112790.0,0.82072]
[1755821965297,0.47812,112800.0,112790.0,0.89996767]
[1755821965498,1.12018513,112800.0,112790.0,0.08024767]
[1755821965699,1.12018513,112800.0,112790.0,0.82072]
[1755821965999,1.12018513,112800.0,112790.0,0.88411231]
[1755821967008,1.12118513,112800.0,112790.0,0.88411231]
[1755821967910,1.26846513,112800.0,112790.0,0.84811231]
[1755821968111,1.26946513,112800.0,112790.0,0.76972]
[1755821968507,0.11983,112790.0,112760.0,0.44004767]
[1755821968711,0.39949513,112770.0,112760.0,1.18192]
[1755821969502,0.39949513,112770.0,112760.0,0.82112]
[1755821969715,0.76029513,112770.0,112760.0,0.84739]
[1755821969916,0.76029513,112770.0,112760.0,0.82412]
[1755821970112,1.04819513,112770.0,112760.0,0.003]
[1755821970322,0.76773,112770.0,112760.0,0.82468]
[1755821970621,1.04819513,112770.0,112760.0,0.82668]
[1755821971425,0.76309513,112770.0,112760.0,0.82468]
[1755821971720,1.05019513,112770.0,112760.0,0.82168]
[1755821971923,1.33066026,112770.0,112760.0,0.82168]
[1755821972114,1.05019513,112770.0,112760.0,0.82168]
[1755821972314,1.05119513,112770.0,112750.0,0.83036288]
[1755821972516,0.76029513,112760.0,112750.0,0.85363288]
[1755821972716,0.76029513,112760.0,112750.0,0.83036288]
[1755821973621,0.76029513,112760.0,112750.0,0.85363288]
[1755821973823,0.88809513,112760.0,112750.0,0.85363288]
[1755821974027,0.60763,112760.0,112750.0,1.22684801]
[1755821974222,0.60763,112760.0,112750.0,0.94638288]
[1755821974526,0.90753,112760.0,112750.0,1.22684801]
[1755821975826,0.21299,112760.0,112750.0,1.22684801]
[1755821976015,0.13735,112760.0,112750.0,1.58844801]
[1755821976220,0.43725,112760.0,112750.0,1.67715951]
[1755821976420,0.4277,112760.0,112750.0,1.58844801]
[1755821976720,0.2999,112760.0,112750.0,1.58844801]
[1755821979623,0.16961,112760.0,112750.0,1.95762464]
[1755821979826,0.02336,112780.0,112750.0,2.39810997]
[1755821980028,0.02336,112780.0,112770.0,0.92173026]
[1755821980229,0.02336,112780.0,112770.0,1.74401026]
[1755821981926,0.02836,112780.0,112770.0,1.74401026]
[1755821983829,0.02636,112780.0,112770.0,1.74401026]
[1755821984734,0.02336,112780.0,112770.0,1.74401026]
[1755821986738,0.045,112780.0,112770.0,1.18308]
[1755821986934,0.045,112780.0,112770.0,1.74401026]
[1755821988032,0.02336,112780.0,112770.0,1.74401026]
[1755821990338,0.03318301,112790.0,112770.0,1.92139996]
[1755821990545,0.02363301,112790.0,112780.0,0.64126513]
[1755821991039,0.04692301,112790.0,112780.0,0.64126513]
[1755821991240,0.02363301,112790.0,112780.0,0.64126513]
[1755821993441,0.04692301,112790.0,112780.0,0.64126513]
[1755821995237,0.04692301,112790.0,112780.0,0.64326513]
[1755821995636,0.04692301,112790.0,112780.0,0.64126513]
[1755821995832,0.02363301,112790.0,112780.0,0.73095303]
[1755821996243,0.02363301,112790.0,112780.0,0.73295303]
[1755821996543,0.02363301,112790.0,112780.0,0.99855303]
[1755821997042,0.02363301,112790.0,112780.0,0.90986513]
[1755821997246,0.04692301,112790.0,112780.0,0.90986513]
[1755821997444,0.02363301,112790.0,112780.0,0.99855293]
[1755821997647,0.00013301,112790.0,112780.0,0.99755293]
[1755821998546,0.02363301,112790.0,112780.0,0.99755293]
[1755822000144,0.00013301,112790.0,112780.0,0.99755293]
[1755822000743,0.00013301,112790.0,112780.0,1.06070939]
[1755822004454,0.00013301,112790.0,112780.0,0.97202159]
[1755822005056,0.00013301,112790.0,112780.0,1.06070939]
[1755822005260,0.02363301,112790.0,112780.0,0.99755293]
[1755822005651,0.00013301,112790.0,112780.0,0.99755293]
[1755822006557,0.02363301,112790.0,112780.0,0.99755293]
[1755822006856,0.02363301,112790.0,112780.0,1.0768006]
[1755822008960,0.01514,112820.0,112810.0,0.0058]
[1755822009169,0.08104,112830.0,112820.0,0.10852]
[1755822009463,0.08104,112830.0,112820.0,0.38898513]
[1755822009861,0.26024,112830.0,112820.0,0.38898513]
[1755822010457,0.26424,112830.0,112820.0,0.38898513]
[1755822010762,0.26424,112830.0,112820.0,0.39770381]
[1755822011262,0.30131,112830.0,112820.0,0.46742169]
[1755822012063,0.30431,112830.0,112820.0,0.46742169]
[1755822012363,0.30111,112830.0,112820.0,0.18695656]
[1755822012557,0.94437513,112830.0,112820.0,0.07843656]
[1755822012764,0.94437513,112830.0,112810.0,1.52400814]
[1755822013059,0.11811,112820.0,112810.0,1.19726301]
[1755822013358,0.11811,112820.0,112810.0,1.50101814]
[1755822013557,0.11811,112820.0,112810.0,1.52400814]
[1755822014357,0.39857513,112820.0,112810.0,1.18269301]
[1755822014864,0.39857513,112820.0,112810.0,1.19160992]
[1755822015462,0.39967513,112820.0,112810.0,1.19160992]
[1755822015863,0.39967513,112820.0,112810.0,1.26172419]
[1755822016264,0.11921,112820.0,112810.0,1.29986419]
[1755822016465,0.39967513,112820.0,112810.0,1.32285419]
[1755822016857,0.39967513,112820.0,112810.0,1.29956419]
[1755822017057,0.39967513,112820.0,112810.0,1.27657419]
[1755822017257,0.39967513,112820.0,112810.0,0.90092419]
[1755822018158,0.39967513,112820.0,112810.0,0.91051419]
[1755822018457,0.11921,112820.0,112810.0,1.65193932]
[1755822018769,0.11921,112820.0,112810.0,1.29113932]
[1755822019662,0.11921,112820.0,112810.0,1.65193932]
[1755822019867,0.11921,112820.0,112810.0,1.29113932]
[1755822020365,0.11921,112820.0,112810.0,1.65193932]
[1755822020566,0.11921,112820.0,112810.0,1.29113932]
[1755822021370,0.11921,112820.0,112810.0,1.01067419]
[1755822021670,0.11921,112820.0,112810.0,1.29113932]
[1755822022171,0.10564,112820.0,112810.0,1.65193932]
[1755822022668,0.07206,112820.0,112810.0,1.65193932]
[1755822023567,0.03342,112820.0,112810.0,1.65193932]
[1755822023966,0.02439,112820.0,112810.0,1.65193932]
[1755822024869,0.0011,112820.0,112810.0,1.65193932]
[1755822026270,0.0011,112820.0,112810.0,1.37147419]
[1755822026470,0.0011,112820.0,112810.0,1.65193932]
[1755822026766,0.0011,112820.0,112810.0,1.74060352]
[1755822027475,0.0011,112820.0,112810.0,1.65193932]
[1755822027770,0.0011,112820.0,112810.0,1.74060352]
[1755822028169,0.0011,112820.0,112810.0,1.46013839]
[1755822028373,0.0011,112820.0,112810.0,1.74060352]
[1755822029072,0.0011,112820.0,112810.0,1.65193932]
[1755822030367,0.0011,112820.0,112810.0,1.71516083]
[1755822033171,0.0011,112820.0,112810.0,1.80382503]
[1755822035372,0.0011,112820.0,112810.0,1.74060352]
[1755822036379,0.0011,112820.0,112810.0,1.8039247]
[1755822036572,0.03811,112840.0,112810.0,2.12241712]
[1755822036766,0.05479,112840.0,112830.0,0.38911513]
[1755822036966,0.63598,112850.0,112840.0,0.01355]
[1755822037174,0.73869,112850.0,112840.0,0.38911513]
[1755822037570,0.74559,112850.0,112840.0,0.38911513]
[1755822037778,0.74559,112850.0,112840.0,0.10865]
[1755822038272,0.74559,112850.0,112840.0,0.38911513]
[1755822038672,0.39179,112850.0,112840.0,0.38911513]
[1755822039778,0.13103,112850.0,112840.0,0.38911513]
[1755822041680,0.13103,112850.0,112840.0,0.10865]
[1755822041979,0.13103,112850.0,112840.0,0.38911513]
[1755822044768,0.0139,112850.0,112840.0,0.38911513]
[1755822045080,0.0139,112850.0,112840.0,0.54107178]
[1755822046881,0.0139,112850.0,112840.0,0.45243108]
[1755822048182,0.0139,112850.0,112840.0,0.38911513]
[1755822048388,0.0139,112850.0,112840.0,0.45243108]
[1755822049278,0.0139,112850.0,112840.0,0.38911513]
[1755822051187,0.0139,112850.0,112840.0,0.10865]
[1755822051188,0.03599,112850.0,112840.0,0.10865]
[1755822051378,0.03599,112850.0,112840.0,0.38911513]
[1755822051688,0.0139,112850.0,112840.0,0.38911513]
[1755822054083,0.03707,112850.0,112840.0,0.38911513]
[1755822055887,0.03707,112850.0,112840.0,1.20899513]
[1755822056584,0.0139,112850.0,112840.0,1.20899513]
[1755822057986,0.0139,112850.0,112840.0,1.56979513]
[1755822058187,0.0139,112850.0,112840.0,1.63311108]
[1755822060385,0.03707,112850.0,112840.0,1.35264595]
[1755822060590,0.03707,112850.0,112840.0,1.63311108]
[1755822061492,0.03707,112850.0,112840.0,1.89871108]
[1755822062788,0.0139,112850.0,112840.0,1.89871108]
[1755822063190,0.0139,112850.0,112840.0,1.61824595]
[1755822063487,0.0139,112850.0,112840.0,1.89871108]
[1755822064497,0.03707,112850.0,112840.0,1.61824595]
[1755822064790,0.10031,112850.0,112840.0,1.89863108]
[1755822064989,0.13379,112850.0,112840.0,1.89863108]
[1755822065487,0.08674,112850.0,112840.0,1.89863108]
[1755822065794,0.07056,112850.0,112840.0,1.89863108]
[1755822065983,0.10404,112850.0,112840.0,1.61816595]
[1755822066183,0.10404,112850.0,112840.0,1.89863108]
[1755822066386,0.13379,112850.0,112840.0,1.07883108]
[1755822066592,0.13379,112850.0,112840.0,1.89859108]
[1755822067494,0.13379,112850.0,112840.0,1.63299108]
[1755822067692,0.13379,112850.0,112840.0,1.35252595]
[1755822067892,0.13379,112850.0,112840.0,1.63299108]
[1755822070898,0.10031,112850.0,112840.0,1.63299108]
[1755822071089,0.13379,112850.0,112840.0,1.63299108]
[1755822071390,0.12022,112850.0,112840.0,1.63299108]
[1755822071892,0.08674,112850.0,112840.0,1.63299108]
[1755822072096,0.07056,112850.0,112840.0,1.63299108]
[1755822072295,0.04615,112850.0,112840.0,1.63299108]
[1755822072891,0.02298,112850.0,112840.0,1.63299108]
[1755822073096,0.0139,112850.0,112840.0,1.63299108]
[1755822073496,0.0139,112850.0,112840.0,1.56967513]
[1755822075291,0.0139,112850.0,112840.0,1.6489228]
[1755822076092,0.0139,112850.0,112840.0,1.63298289]
[1755822078298,0.04615,112850.0,112840.0,1.63298289]
[1755822078801,0.06892,112850.0,112840.0,1.63298289]
[1755822079100,0.1029,112850.0,112840.0,1.35251776]
[1755822079301,0.1029,112850.0,112840.0,0.53275776]
[1755822079302,0.13212,112850.0,112840.0,0.53275776]
[1755822079501,0.13212,112850.0,112840.0,1.63330289]
[1755822080898,0.13212,112850.0,112840.0,0.53275776]
[1755822081202,0.13212,112850.0,112840.0,1.27238289]
[1755822082102,0.13212,112850.0,112840.0,1.63318289]
[1755822082502,0.13212,112850.0,112840.0,1.27238289]
[1755822082701,0.13212,112850.0,112840.0,1.63318289]
[1755822082903,0.13212,112850.0,112840.0,1.27238289]
[1755822083102,0.13212,112850.0,112840.0,1.35271776]
[1755822083303,0.13212,112850.0,112840.0,1.56987513]
[1755822083504,0.13212,112850.0,112840.0,1.20907513]
[1755822084305,0.13212,112850.0,112840.0,0.92861]
[1755822084700,0.13212,112850.0,112840.0,0.94575772]
[1755822084701,0.41258513,112850.0,112840.0,0.94575772]
[1755822084902,0.41258513,112850.0,112840.0,0.99190772]
[1755822085300,0.41258513,112850.0,112840.0,0.14951772]
[1755822085501,0.41258513,112850.0,112840.0,0.94611772]
[1755822085800,0.41258513,112850.0,112840.0,0.96830772]
[1755822086415,0.77338513,112850.0,112840.0,0.96830772]
[1755822087309,0.77338513,112850.0,112840.0,0.88392772]
[1755822087613,0.77338513,112850.0,112840.0,0.82056]
[1755822087809,0.77338513,112850.0,112830.0,0.12413073]
[1755822088121,0.11811,112840.0,112830.0,0.17057073]
[1755822088321,0.11811,112840.0,112830.0,0.99093073]
[1755822088619,0.39857513,112840.0,112830.0,0.99101073]
[1755822088914,0.42727513,112840.0,112830.0,0.99101073]
[1755822089112,0.42727513,112840.0,112830.0,0.96882073]
[1755822089314,0.42727513,112840.0,112830.0,0.99101073]
[1755822091715,0.42727513,112840.0,112830.0,0.92764301]
[1755822091913,0.14681,112840.0,112830.0,0.92764301]
[1755822092218,0.14681,112840.0,112830.0,1.27147586]
[1755822092410,0.14781,112840.0,112830.0,1.27147586]
[1755822092710,0.14981,112840.0,112830.0,1.27147586]
[1755822093618,0.14981,112840.0,112830.0,1.20810814]
[1755822093823,0.14981,112840.0,112830.0,0.92764301]
[1755822094226,0.14981,112840.0,112830.0,0.10720301]
[1755822094518,0.14981,112840.0,112830.0,0.92768301]
[1755822095219,0.14881,112840.0,112830.0,0.92768301]
[1755822095620,0.14681,112840.0,112830.0,0.99105073]
[1755822096022,0.14681,112840.0,112830.0,1.63231586]
[1755822096319,0.14681,112840.0,112830.0,1.56894814]
[1755822096512,0.14681,112840.0,112830.0,1.20814814]
[1755822096709,0.14681,112840.0,112830.0,0.92768301]
[1755822096914,0.14681,112840.0,112830.0,1.20814814]
[1755822097818,0.14681,112840.0,112830.0,0.92768301]
[1755822098722,0.78807513,112840.0,112830.0,0.00013301]
[1755822098921,1.06934026,112840.0,112830.0,0.00013301]
[1755822099518,1.07842938,112840.0,112810.0,0.13966118]
[1755822099722,0.75937513,112820.0,112810.0,0.13995118]
[1755822099923,0.75937513,112820.0,112810.0,0.06092]
[1755822100522,0.75937513,112820.0,112810.0,0.08311]
[1755822100822,0.75937513,112820.0,112810.0,0.00946]
[1755822101725,1.05927513,112820.0,112810.0,0.00946]
[1755822102027,0.11811,112810.0,112800.0,0.91518204]
[1755822102220,0.11811,112810.0,112800.0,0.93737204]
[1755822102221,0.75937513,112810.0,112800.0,0.93737204]
[1755822102825,1.05927513,112810.0,112800.0,0.93737204]
[1755822103224,1.06127513,112810.0,112800.0,0.93737204]
[1755822103720,1.06127513,112810.0,112800.0,0.11605204]
[1755822103921,1.06127513,112810.0,112800.0,0.09209204]
[1755822104924,1.06227513,112810.0,112800.0,0.09209204]
[1755822105726,1.17935513,112810.0,112800.0,0.09209204]
[1755822106531,0.86491,112810.0,112800.0,0.39651717]
[1755822106724,0.89889,112810.0,112800.0,0.39651717]
[1755822107121,0.86491,112810.0,112800.0,0.39651717]
[1755822107318,0.8994,112810.0,112800.0,0.39651717]
[1755822107517,0.88587,112810.0,112800.0,0.39651717]
[1755822107725,0.88587,112810.0,112800.0,0.11605204]
[1755822108024,0.88587,112810.0,112800.0,0.39651717]
[1755822108832,0.8996,112810.0,112800.0,0.39651717]
[1755822109428,0.8996,112810.0,112800.0,0.11605204]
[1755822109624,0.8996,112810.0,112800.0,0.39651717]
[1755822109927,0.78252,112810.0,112800.0,0.39651717]
[1755822110821,0.78252,112810.0,112800.0,0.11605204]
[1755822111729,0.78252,112810.0,112800.0,0.39651717]
[1755822114635,0.78252,112810.0,112800.0,0.11605204]
[1755822115635,1.06298513,112810.0,112800.0,0.11605204]
[1755822117238,0.78252,112810.0,112800.0,0.11605204]
[1755822117432,1.06298513,112810.0,112800.0,0.11605204]
[1755822117633,0.78252,112810.0,112800.0,0.11605204]
[1755822118439,0.78152,112810.0,112800.0,0.11605204]
[1755822120044,0.78052,112810.0,112800.0,0.11605204]
[1755822121145,0.78152,112810.0,112800.0,0.11605204]
[1755822121445,0.78052,112810.0,112800.0,0.11605204]
[1755822121642,1.06298513,112810.0,112800.0,0.11605204]
[1755822122142,1.06298513,112810.0,112800.0,0.09322204]
[1755822122343,1.06298513,112810.0,112800.0,0.11541204]
[1755822122642,1.06298513,112810.0,112800.0,0.09322204]
[1755822122845,1.06298513,112810.0,112800.0,0.04814204]
[1755822123037,1.06298513,112810.0,112800.0,0.03366204]
[1755822123543,1.06298513,112810.0,112800.0,0.00898204]
[1755822123840,0.11007,112800.0,112790.0,0.81984964]
[1755822124046,0.11007,112800.0,112790.0,1.64524964]